[Event "Early-Titled-Tuesday-Blitz-June-18-2024"]
[Site "Chess.com"]
[Date "2024.06.18"]
[Round "7"]
[White "Sanyura"]
[Black "twofoxniel"]
[Result "0-1"]
[WhiteElo "2520"]
[BlackElo "2688"]
[TimeControl "180+1"]
[EndTime "9:21:15 PDT"]
[Termination "twofoxniel won by resignation"]

1. e4 {[%clk 0:02:51.6]} 1... d5 {[%clk 0:03:00]} 2. exd5 {[%clk 0:02:51.6]}
2... Nf6 {[%clk 0:03:00.7]} 3. d4 {[%clk 0:02:50.1]} 3... Bg4 {[%clk 0:03:00.7]}
4. Nf3 {[%clk 0:02:50.4]} 4... Qxd5 {[%clk 0:03:00.9]} 5. Be2 {[%clk 0:02:50.6]}
5... Nc6 {[%clk 0:03:01.5]} 6. O-O {[%clk 0:02:50.3]} 6... O-O-O {[%clk
0:03:02.1]} 7. Nc3 {[%clk 0:02:50.1]} 7... Qh5 {[%clk 0:03:01.3]} 8. Bf4 {[%clk
0:02:50.6]} 8... e5 {[%clk 0:02:58.6]} 9. Nxe5 {[%clk 0:02:49.8]} 9... Rxd4
{[%clk 0:02:14.6]} 10. Bxg4+ {[%clk 0:02:48.7]} 10... Nxg4 {[%clk 0:02:14.8]}
11. Qxg4+ {[%clk 0:02:48.5]} 11... Qxg4 {[%clk 0:02:14.9]} 12. Nxg4 {[%clk
0:02:49.4]} 12... Rxf4 {[%clk 0:02:15.5]} 13. Ne3 {[%clk 0:02:49.8]} 13... Bc5
{[%clk 0:02:13.8]} 14. Rad1 {[%clk 0:02:43]} 14... Bxe3 {[%clk 0:02:11.4]} 15.
fxe3 {[%clk 0:02:43.9]} 15... Rxf1+ {[%clk 0:02:11.9]} 16. Rxf1 {[%clk
0:02:44.6]} 16... f6 {[%clk 0:02:12.2]} 17. g4 {[%clk 0:02:43.3]} 17... Re8
{[%clk 0:02:11.5]} 18. Kf2 {[%clk 0:02:43.7]} 18... Ne5 {[%clk 0:02:11.3]} 19.
h3 {[%clk 0:02:42.7]} 19... Nc4 {[%clk 0:02:11]} 20. b3 {[%clk 0:02:28.3]} 20...
Nd6 {[%clk 0:01:49.7]} 21. Rc1 {[%clk 0:02:15.3]} 21... Re5 {[%clk 0:01:45.7]}
22. Rd1 {[%clk 0:02:15.4]} 22... Rc5 {[%clk 0:01:44.9]} 23. Nd5 {[%clk
0:02:15.6]} 23... Rxc2+ {[%clk 0:01:43.6]} 24. Kf3 {[%clk 0:02:16.2]} 24... Rxa2
{[%clk 0:01:37.9]} 25. Ne7+ {[%clk 0:02:16.4]} 25... Kd7 {[%clk 0:01:37.5]} 26.
Nf5 {[%clk 0:02:16.9]} 26... g6 {[%clk 0:01:37.8]} 27. Nd4 {[%clk 0:02:08.3]}
27... a5 {[%clk 0:01:36.9]} 28. e4 {[%clk 0:02:04.2]} 28... a4 {[%clk
0:01:35.4]} 29. g5 {[%clk 0:01:55.8]} 29... Ke7 {[%clk 0:01:14.6]} 30. gxf6+
{[%clk 0:01:16.9]} 30... Kxf6 {[%clk 0:01:14.6]} 31. Kf4 {[%clk 0:01:12.8]}
31... g5+ {[%clk 0:01:14.2]} 32. Ke3 {[%clk 0:01:13]} 32... axb3 {[%clk
0:01:13.8]} 33. Nxb3 {[%clk 0:01:13.1]} 33... Ra3 {[%clk 0:01:13.5]} 34. Rd3
{[%clk 0:01:13.2]} 34... Nc4+ {[%clk 0:01:10.6]} 35. Kd4 {[%clk 0:01:13.2]}
35... Ne5 {[%clk 0:01:11.2]} 36. Rc3 {[%clk 0:01:11.9]} 36... Ra4+ {[%clk
0:01:08.9]} 37. Ke3 {[%clk 0:01:00.5]} 37... c6 {[%clk 0:00:57.2]} 38. Nc5
{[%clk 0:00:58.1]} 38... Rb4 {[%clk 0:00:57.1]} 39. Rc1 {[%clk 0:00:54.1]} 39...
b6 {[%clk 0:00:53.2]} 40. Rf1+ {[%clk 0:00:40.9]} 40... Ke7 {[%clk 0:00:53.2]}
41. Rf5 {[%clk 0:00:41.4]} 41... Nf7 {[%clk 0:00:46.9]} 42. Nd3 {[%clk
0:00:37.4]} 42... Rb3 {[%clk 0:00:46.9]} 43. e5 {[%clk 0:00:26.7]} 43... c5
{[%clk 0:00:46.1]} 44. Ke4 {[%clk 0:00:26.5]} 44... c4 {[%clk 0:00:41.2]} 45.
Nf2 {[%clk 0:00:25.2]} 45... Rb5 {[%clk 0:00:37.3]} 46. Kd4 {[%clk 0:00:20.5]}
46... Rc5 {[%clk 0:00:37.3]} 47. Ne4 {[%clk 0:00:19.6]} 47... Rc6 {[%clk
0:00:33.6]} 48. Nc3 {[%clk 0:00:19.6]} 48... h6 {[%clk 0:00:31.2]} 49. Nd5+
{[%clk 0:00:19.8]} 49... Kf8 {[%clk 0:00:28.5]} 50. Nc3 {[%clk 0:00:12.6]} 50...
Kg7 {[%clk 0:00:28.6]} 51. Kd5 {[%clk 0:00:12.4]} 51... Rc5+ {[%clk 0:00:27.5]}
52. Kd4 {[%clk 0:00:11.3]} 52... Nd8 {[%clk 0:00:21.8]} 53. Rf6 {[%clk
0:00:08.7]} 53... Nc6+ {[%clk 0:00:22.1]} 54. Rxc6 {[%clk 0:00:04.9]} 54... Rxc6
{[%clk 0:00:22.3]} 55. Kd5 {[%clk 0:00:05.8]} 55... Rc5+ {[%clk 0:00:22.5]} 56.
Kd6 {[%clk 0:00:05.9]} 56... Kf8 {[%clk 0:00:17.5]} 57. e6 {[%clk 0:00:04.8]}
57... Ke8 {[%clk 0:00:17.4]} 58. Ne4 {[%clk 0:00:02.8]} 58... Rf5 {[%clk
0:00:18]} 59. e7 {[%clk 0:00:01.8]} 59... Rf4 {[%clk 0:00:17.3]} 60. Nc3 {[%clk
0:00:01]} 60... Rf6+ {[%clk 0:00:17.6]} 61. Ke5 {[%clk 0:00:01.2]} 61... Rc6
{[%clk 0:00:16.5]} 62. Nd5 {[%clk 0:00:01.7]} 62... Rc5 {[%clk 0:00:16.2]} 63.
Kd6 {[%clk 0:00:02.1]} 63... Rxd5+ {[%clk 0:00:16.1]} 64. Kxd5 {[%clk 0:00:03]}
64... b5 {[%clk 0:00:17]} 0-1

[Event "Early-Titled-Tuesday-Blitz-June-18-2024"]
[Site "Chess.com"]
[Date "2024.06.18"]
[Round "7"]
[White "Erdnya15"]
[Black "tetrix83"]
[Result "1-0"]
[WhiteElo "2531"]
[BlackElo "2668"]
[TimeControl "180+1"]
[EndTime "9:21:20 PDT"]
[Termination "Erdnya15 won on time"]

1. c4 {[%clk 0:03:00.9]} 1... g6 {[%clk 0:02:59.5]} 2. Nc3 {[%clk 0:02:57]} 2...
Bg7 {[%clk 0:03:00.4]} 3. d4 {[%clk 0:02:55.4]} 3... Nf6 {[%clk 0:02:58.7]} 4.
e4 {[%clk 0:02:50.7]} 4... O-O {[%clk 0:02:59.6]} 5. Nf3 {[%clk 0:02:48.1]} 5...
d6 {[%clk 0:02:59.7]} 6. h3 {[%clk 0:02:46.6]} 6... e5 {[%clk 0:02:59.1]} 7. Be2
{[%clk 0:02:45.6]} 7... exd4 {[%clk 0:02:56.9]} 8. Nxd4 {[%clk 0:02:43.4]} 8...
Re8 {[%clk 0:02:57.8]} 9. Bg5 {[%clk 0:02:13.1]} 9... h6 {[%clk 0:02:51.7]} 10.
Bxf6 {[%clk 0:02:02.7]} 10... Qxf6 {[%clk 0:02:52.6]} 11. Nf3 {[%clk 0:01:56.4]}
11... Qd8 {[%clk 0:02:45.6]} 12. Qc2 {[%clk 0:01:49.2]} 12... Nd7 {[%clk
0:02:37.1]} 13. O-O {[%clk 0:01:46.8]} 13... Nc5 {[%clk 0:02:37.4]} 14. Bd3
{[%clk 0:01:46]} 14... a5 {[%clk 0:02:33.4]} 15. Rae1 {[%clk 0:01:43.6]} 15...
c6 {[%clk 0:02:33.6]} 16. Qd2 {[%clk 0:01:38.2]} 16... Qf6 {[%clk 0:02:32.1]}
17. Bc2 {[%clk 0:01:35.9]} 17... Bxh3 {[%clk 0:02:30.3]} 18. e5 {[%clk 0:01:29]}
18... dxe5 {[%clk 0:02:26.4]} 19. Qe3 {[%clk 0:01:29.2]} 19... Bxg2 {[%clk
0:02:06]} 20. Kxg2 {[%clk 0:01:27.3]} 20... Ne6 {[%clk 0:02:04.2]} 21. Ne2
{[%clk 0:01:06.4]} 21... Red8 {[%clk 0:01:31.6]} 22. Rd1 {[%clk 0:00:54.3]}
22... Nf4+ {[%clk 0:01:22.3]} 23. Nxf4 {[%clk 0:00:52.7]} 23... exf4 {[%clk
0:01:23.1]} 24. Qb6 {[%clk 0:00:41.5]} 24... Rxd1 {[%clk 0:01:07.9]} 25. Rxd1
{[%clk 0:00:42.4]} 25... Qe6 {[%clk 0:01:08.1]} 26. Rd8+ {[%clk 0:00:36.1]}
26... Rxd8 {[%clk 0:01:04.8]} 27. Qxd8+ {[%clk 0:00:37]} 27... Kh7 {[%clk
0:01:03.2]} 28. Qd3 {[%clk 0:00:32.1]} 28... Bxb2 {[%clk 0:00:58.7]} 29. c5
{[%clk 0:00:26.2]} 29... Bf6 {[%clk 0:00:52.5]} 30. Bb3 {[%clk 0:00:25.5]} 30...
Qg4+ {[%clk 0:00:50.8]} 31. Kf1 {[%clk 0:00:25.6]} 31... Kg7 {[%clk 0:00:49.5]}
32. Qc4 {[%clk 0:00:16.5]} 32... Qh3+ {[%clk 0:00:44]} 33. Ke2 {[%clk
0:00:16.2]} 33... Qd7 {[%clk 0:00:44.6]} 34. Qxf4 {[%clk 0:00:16.1]} 34... Qe7+
{[%clk 0:00:41.3]} 35. Qe3 {[%clk 0:00:15.7]} 35... h5 {[%clk 0:00:30.7]} 36.
Kd3 {[%clk 0:00:08.7]} 36... g5 {[%clk 0:00:20.6]} 37. Qxe7 {[%clk 0:00:02.9]}
37... Bxe7 {[%clk 0:00:20.8]} 38. Kd4 {[%clk 0:00:03]} 38... g4 {[%clk
0:00:19.8]} 39. Ne5 {[%clk 0:00:02.7]} 39... f5 {[%clk 0:00:18.2]} 40. Nd3
{[%clk 0:00:01.8]} 40... Bf6+ {[%clk 0:00:18]} 41. Ke3 {[%clk 0:00:01.9]} 41...
Bg5+ {[%clk 0:00:17.6]} 42. f4 {[%clk 0:00:01.6]} 42... Be7 {[%clk 0:00:16.4]}
43. Be6 {[%clk 0:00:01.8]} 43... Kf6 {[%clk 0:00:11.5]} 44. Bc8 {[%clk
0:00:02.4]} 44... h4 {[%clk 0:00:08.8]} 45. Bxb7 {[%clk 0:00:02.1]} 45... h3
{[%clk 0:00:08.5]} 46. Kf2 {[%clk 0:00:02.8]} 46... Ke6 {[%clk 0:00:07.6]} 47.
Bxc6 {[%clk 0:00:03]} 47... Bh4+ {[%clk 0:00:07.8]} 48. Kg1 {[%clk 0:00:02.2]}
48... g3 {[%clk 0:00:08.1]} 49. a4 {[%clk 0:00:02]} 49... Bf6 {[%clk 0:00:08.2]}
50. Bf3 {[%clk 0:00:02]} 50... Bd4+ {[%clk 0:00:08.2]} 51. Kh1 {[%clk
0:00:01.4]} 51... Be3 {[%clk 0:00:06.7]} 52. c6 {[%clk 0:00:01.4]} 52... Kd6
{[%clk 0:00:06.7]} 53. Ne5 {[%clk 0:00:01.7]} 53... Bxf4 {[%clk 0:00:03]} 54.
Nc4+ {[%clk 0:00:02.1]} 54... Kc7 {[%clk 0:00:01.5]} 55. Nxa5 {[%clk 0:00:02.6]}
55... Be3 {[%clk 0:00:01.3]} 56. Nc4 {[%clk 0:00:02.2]} 56... Bf2 {[%clk
0:00:01]} 57. a5 {[%clk 0:00:02.1]} 57... g2+ {[%clk 0:00:01.5]} 58. Bxg2 {[%clk
0:00:02.4]} 58... hxg2+ {[%clk 0:00:02.4]} 59. Kxg2 {[%clk 0:00:03.3]} 59... Bc5
{[%clk 0:00:02.6]} 60. Ne5 {[%clk 0:00:03.6]} 60... Bd6 {[%clk 0:00:02.8]} 61.
a6 {[%clk 0:00:02.4]} 61... Bxe5 {[%clk 0:00:02.4]} 62. a7 {[%clk 0:00:02.7]}
1-0

[Event "Early-Titled-Tuesday-Blitz-June-18-2024"]
[Site "Chess.com"]
[Date "2024.06.18"]
[Round "7"]
[White "KorolDimitriy75"]
[Black "mostafa_sakha"]
[Result "1/2-1/2"]
[WhiteElo "2522"]
[BlackElo "2392"]
[TimeControl "180+1"]
[EndTime "9:21:25 PDT"]
[Termination "Game drawn by stalemate"]

1. d4 {[%clk 0:03:00.9]} 1... Nf6 {[%clk 0:02:59.5]} 2. c4 {[%clk 0:02:59.7]}
2... e6 {[%clk 0:02:59.2]} 3. Nc3 {[%clk 0:03:00.1]} 3... Bb4 {[%clk 0:02:58.5]}
4. Qc2 {[%clk 0:03:00.3]} 4... O-O {[%clk 0:02:58.4]} 5. e4 {[%clk 0:03:00.4]}
5... d6 {[%clk 0:02:58.2]} 6. e5 {[%clk 0:03:00.5]} 6... dxe5 {[%clk 0:02:58]}
7. dxe5 {[%clk 0:03:01.4]} 7... Ng4 {[%clk 0:02:58.2]} 8. Nf3 {[%clk 0:03:01.5]}
8... Nc6 {[%clk 0:02:54.2]} 9. Bf4 {[%clk 0:03:00.8]} 9... Nd4 {[%clk
0:02:35.6]} 10. Nxd4 {[%clk 0:02:58]} 10... Qxd4 {[%clk 0:02:34.2]} 11. Bg3
{[%clk 0:02:58.3]} 11... Nxe5 {[%clk 0:02:11.4]} 12. Rd1 {[%clk 0:02:57.2]}
12... Qc5 {[%clk 0:02:05.4]} 13. a3 {[%clk 0:02:56.4]} 13... Bxc3+ {[%clk
0:02:00.9]} 14. Qxc3 {[%clk 0:02:57.3]} 14... Ng6 {[%clk 0:01:53.3]} 15. b4
{[%clk 0:02:14.1]} 15... Qe7 {[%clk 0:01:46.2]} 16. Be2 {[%clk 0:01:47.2]} 16...
e5 {[%clk 0:01:43.6]} 17. O-O {[%clk 0:01:43.6]} 17... Bf5 {[%clk 0:01:29.3]}
18. Rfe1 {[%clk 0:01:35.8]} 18... f6 {[%clk 0:01:27.8]} 19. Qf3 {[%clk
0:01:25.1]} 19... Bc8 {[%clk 0:01:04.1]} 20. Qd5+ {[%clk 0:01:17.6]} 20... Qe6
{[%clk 0:00:55.1]} 21. Qc5 {[%clk 0:00:50.7]} 21... b6 {[%clk 0:00:46.9]} 22.
Qxc7 {[%clk 0:00:47]} 22... Rf7 {[%clk 0:00:31.4]} 23. Qd6 {[%clk 0:00:29.1]}
23... Qxd6 {[%clk 0:00:28.6]} 24. Rxd6 {[%clk 0:00:30]} 24... Bb7 {[%clk
0:00:29]} 25. c5 {[%clk 0:00:29.7]} 25... bxc5 {[%clk 0:00:27.1]} 26. Bc4 {[%clk
0:00:29.7]} 26... Bc8 {[%clk 0:00:08.5]} 27. Rd8+ {[%clk 0:00:27.4]} 27... Nf8
{[%clk 0:00:08.3]} 28. bxc5 {[%clk 0:00:24]} 28... Bb7 {[%clk 0:00:07.7]} 29.
Rxa8 {[%clk 0:00:21.5]} 29... Bxa8 {[%clk 0:00:08.6]} 30. Rb1 {[%clk 0:00:20.6]}
30... Be4 {[%clk 0:00:06.4]} 31. Rb8 {[%clk 0:00:19.3]} 31... g5 {[%clk
0:00:05.2]} 32. h3 {[%clk 0:00:18.7]} 32... Kg7 {[%clk 0:00:04.9]} 33. Bxf7
{[%clk 0:00:18.1]} 33... Kxf7 {[%clk 0:00:05.8]} 34. f3 {[%clk 0:00:18.1]} 34...
Bd5 {[%clk 0:00:05.4]} 35. Bf2 {[%clk 0:00:17.9]} 35... Ne6 {[%clk 0:00:05.1]}
36. Rc8 {[%clk 0:00:17.2]} 36... Ke7 {[%clk 0:00:04.1]} 37. c6 {[%clk
0:00:15.7]} 37... Kd6 {[%clk 0:00:03.9]} 38. Bxa7 {[%clk 0:00:13]} 38... Bxc6
{[%clk 0:00:04.1]} 39. Rh8 {[%clk 0:00:11.9]} 39... Nf4 {[%clk 0:00:02.6]} 40.
Rxh7 {[%clk 0:00:11.4]} 40... e4 {[%clk 0:00:02.5]} 41. fxe4 {[%clk 0:00:11]}
41... Bxe4 {[%clk 0:00:03.3]} 42. Rh6 {[%clk 0:00:11.4]} 42... Ke6 {[%clk
0:00:03]} 43. Bd4 {[%clk 0:00:11.4]} 43... Nxg2 {[%clk 0:00:02.2]} 44. Bxf6
{[%clk 0:00:09.7]} 44... Kd5 {[%clk 0:00:03.1]} 45. Bxg5 {[%clk 0:00:09.6]}
45... Ne1 {[%clk 0:00:03.9]} 46. h4 {[%clk 0:00:09.3]} 46... Nf3+ {[%clk
0:00:03.5]} 47. Kf2 {[%clk 0:00:09]} 47... Ne5 {[%clk 0:00:03.2]} 48. a4 {[%clk
0:00:08.9]} 48... Ng4+ {[%clk 0:00:03.6]} 49. Kg3 {[%clk 0:00:09.2]} 49... Nxh6
{[%clk 0:00:04.5]} 50. Bxh6 {[%clk 0:00:09.5]} 50... Ke6 {[%clk 0:00:04.4]} 51.
Kf4 {[%clk 0:00:09.2]} 51... Kd5 {[%clk 0:00:04.7]} 52. a5 {[%clk 0:00:09.2]}
52... Bc2 {[%clk 0:00:04.2]} 53. Bg7 {[%clk 0:00:09.2]} 53... Kc6 {[%clk
0:00:05.1]} 54. Bc3 {[%clk 0:00:09.2]} 54... Kb7 {[%clk 0:00:06]} 55. Kg5 {[%clk
0:00:07.4]} 55... Ka8 {[%clk 0:00:06.5]} 56. h5 {[%clk 0:00:07.8]} 56... Bd3
{[%clk 0:00:06.7]} 57. h6 {[%clk 0:00:08.7]} 57... Bc2 {[%clk 0:00:07.2]} 58.
Kf6 {[%clk 0:00:09.5]} 58... Bd3 {[%clk 0:00:07.6]} 59. Ke7 {[%clk 0:00:09.8]}
59... Bc2 {[%clk 0:00:08.1]} 60. Kd6 {[%clk 0:00:10.7]} 60... Bd3 {[%clk
0:00:08.5]} 61. Ke5 {[%clk 0:00:11.2]} 61... Bc2 {[%clk 0:00:09]} 62. Kd4 {[%clk
0:00:11.1]} 62... Bb1 {[%clk 0:00:09.5]} 63. Ke5 {[%clk 0:00:11.3]} 63... Bc2
{[%clk 0:00:09.6]} 64. Kf6 {[%clk 0:00:11.8]} 64... Bb1 {[%clk 0:00:10.1]} 65.
Kg7 {[%clk 0:00:12.4]} 65... Bc2 {[%clk 0:00:10.5]} 66. h7 {[%clk 0:00:12.5]}
66... Bxh7 {[%clk 0:00:10.6]} 67. Kxh7 {[%clk 0:00:13.4]} 67... Kb7 {[%clk
0:00:10.9]} 68. Kg7 {[%clk 0:00:14.3]} 68... Ka8 {[%clk 0:00:11.4]} 69. Kf6
{[%clk 0:00:15.1]} 69... Kb7 {[%clk 0:00:11.9]} 70. Ke5 {[%clk 0:00:16]} 70...
Ka8 {[%clk 0:00:12.2]} 71. Kd5 {[%clk 0:00:16.9]} 71... Kb7 {[%clk 0:00:12.6]}
72. Kc5 {[%clk 0:00:17.8]} 72... Ka8 {[%clk 0:00:13]} 73. Kb5 {[%clk 0:00:18.7]}
73... Kb7 {[%clk 0:00:13.3]} 74. Bd4 {[%clk 0:00:19.6]} 74... Ka8 {[%clk
0:00:13.6]} 75. a6 {[%clk 0:00:20.5]} 75... Kb8 {[%clk 0:00:13.8]} 76. Kb6
{[%clk 0:00:21.4]} 76... Ka8 {[%clk 0:00:14.3]} 77. a7 {[%clk 0:00:22.3]}
1/2-1/2

[Event "Early-Titled-Tuesday-Blitz-June-18-2024"]
[Site "Chess.com"]
[Date "2024.06.18"]
[Round "7"]
[White "XDPS"]
[Black "Vengea_nce"]
[Result "1-0"]
[WhiteElo "2872"]
[BlackElo "2657"]
[TimeControl "180+1"]
[EndTime "9:21:30 PDT"]
[Termination "XDPS won by resignation"]

1. d4 {[%clk 0:03:00.9]} 1... d5 {[%clk 0:02:58.4]} 2. Nf3 {[%clk 0:03:00.7]}
2... Nf6 {[%clk 0:02:57.7]} 3. Bf4 {[%clk 0:02:58.1]} 3... c5 {[%clk 0:02:55.4]}
4. e3 {[%clk 0:02:58.1]} 4... Nc6 {[%clk 0:02:54.8]} 5. Nbd2 {[%clk 0:02:56.8]}
5... Bg4 {[%clk 0:02:54.5]} 6. c3 {[%clk 0:02:56.3]} 6... e6 {[%clk 0:02:54.6]}
7. Qa4 {[%clk 0:02:55.8]} 7... Nd7 {[%clk 0:02:41.8]} 8. Rd1 {[%clk 0:02:55.7]}
8... a6 {[%clk 0:02:38.8]} 9. h3 {[%clk 0:02:52.2]} 9... Bh5 {[%clk 0:02:37.5]}
10. Bd3 {[%clk 0:02:50.5]} 10... b5 {[%clk 0:02:36.6]} 11. Qc2 {[%clk
0:02:50.6]} 11... Rc8 {[%clk 0:02:34]} 12. O-O {[%clk 0:02:50.1]} 12... cxd4
{[%clk 0:02:32.3]} 13. exd4 {[%clk 0:02:46.1]} 13... Nb4 {[%clk 0:02:30.5]} 14.
Qb1 {[%clk 0:02:46.6]} 14... Nxd3 {[%clk 0:02:30.7]} 15. Qxd3 {[%clk 0:02:47.5]}
15... Be7 {[%clk 0:02:29.5]} 16. Rfe1 {[%clk 0:02:47.2]} 16... O-O {[%clk
0:02:28.6]} 17. a3 {[%clk 0:02:47.4]} 17... Bg6 {[%clk 0:02:26.4]} 18. Qe2
{[%clk 0:02:47.1]} 18... Qb6 {[%clk 0:02:18.5]} 19. Rc1 {[%clk 0:02:44.1]} 19...
Rc6 {[%clk 0:02:16.1]} 20. Nf1 {[%clk 0:02:41.2]} 20... a5 {[%clk 0:02:15]} 21.
Ne3 {[%clk 0:02:40.9]} 21... Re8 {[%clk 0:02:03.1]} 22. Bg3 {[%clk 0:02:40.3]}
22... Bh5 {[%clk 0:01:57]} 23. Bh2 {[%clk 0:02:37.1]} 23... h6 {[%clk
0:01:49.4]} 24. g4 {[%clk 0:02:35.7]} 24... Bg6 {[%clk 0:01:49.6]} 25. Bg3
{[%clk 0:02:36.4]} 25... b4 {[%clk 0:01:46.5]} 26. axb4 {[%clk 0:02:36.1]} 26...
axb4 {[%clk 0:01:46.3]} 27. c4 {[%clk 0:02:37]} 27... dxc4 {[%clk 0:01:43.6]}
28. d5 {[%clk 0:02:33]} 28... Rcc8 {[%clk 0:01:16.8]} 29. Nxc4 {[%clk
0:02:30.3]} 29... Qa6 {[%clk 0:01:11.3]} 30. dxe6 {[%clk 0:02:29.8]} 30... Qxe6
{[%clk 0:01:11.1]} 31. Qxe6 {[%clk 0:02:29.6]} 31... fxe6 {[%clk 0:01:12]} 32.
Nd6 {[%clk 0:02:23.1]} 32... Rxc1 {[%clk 0:01:08.9]} 33. Rxc1 {[%clk 0:02:22.8]}
33... Bxd6 {[%clk 0:01:07.5]} 34. Bxd6 {[%clk 0:02:23.7]} 34... Be4 {[%clk
0:01:07.3]} 35. Nd2 {[%clk 0:02:20.7]} 35... Bd5 {[%clk 0:01:06.1]} 36. Bxb4
{[%clk 0:02:21.1]} 36... Rb8 {[%clk 0:01:03.2]} 37. Bc3 {[%clk 0:02:20.6]} 37...
Nb6 {[%clk 0:01:02.2]} 38. Be5 {[%clk 0:02:19.4]} 38... Rb7 {[%clk 0:01:02.1]}
39. b4 {[%clk 0:02:11.9]} 39... Nd7 {[%clk 0:00:58.3]} 40. Bc3 {[%clk
0:02:05.8]} 40... Nb8 {[%clk 0:00:57.1]} 41. Nf1 {[%clk 0:01:59.9]} 41... Nc6
{[%clk 0:00:53.5]} 42. Rb1 {[%clk 0:01:59.9]} 42... Be4 {[%clk 0:00:51.6]} 43.
Rb2 {[%clk 0:01:59.6]} 43... Na7 {[%clk 0:00:49.7]} 44. Ne3 {[%clk 0:01:53]}
44... Nb5 {[%clk 0:00:49.4]} 45. Be5 {[%clk 0:01:52.9]} 45... Na7 {[%clk
0:00:48.7]} 46. Bd6 {[%clk 0:01:50.5]} 46... Rb5 {[%clk 0:00:47.3]} 47. Bc5
{[%clk 0:01:46.1]} 47... Nc6 {[%clk 0:00:45.2]} 48. Nc4 {[%clk 0:01:46.2]} 48...
Bd5 {[%clk 0:00:41.9]} 49. Nd6 {[%clk 0:01:46.5]} 49... Rb8 {[%clk 0:00:41.3]}
50. b5 {[%clk 0:01:47]} 50... Ne5 {[%clk 0:00:38.5]} 51. Be3 {[%clk 0:01:23.8]}
51... Nc4 {[%clk 0:00:31.4]} 52. Nxc4 {[%clk 0:01:23.6]} 52... Bxc4 {[%clk
0:00:32.3]} 53. b6 {[%clk 0:01:24.5]} 53... Bd5 {[%clk 0:00:32.8]} 54. Rc2
{[%clk 0:01:24.3]} 54... Kh7 {[%clk 0:00:32.1]} 55. Rc7 {[%clk 0:01:24.6]} 55...
Rb7 {[%clk 0:00:31.1]} 56. Bd4 {[%clk 0:01:08.1]} 56... Kg6 {[%clk 0:00:27.3]}
57. f4 {[%clk 0:01:03.1]} 57... Rxc7 {[%clk 0:00:26.2]} 58. bxc7 {[%clk
0:01:03.3]} 58... Bb7 {[%clk 0:00:27.1]} 59. Kf2 {[%clk 0:01:01.3]} 59... h5
{[%clk 0:00:27.2]} 60. Kg3 {[%clk 0:00:51.2]} 60... hxg4 {[%clk 0:00:26.8]} 61.
hxg4 {[%clk 0:00:52.1]} 61... Kf7 {[%clk 0:00:27.1]} 62. Kh4 {[%clk 0:00:52.4]}
62... Bc8 {[%clk 0:00:22.7]} 63. Kg5 {[%clk 0:00:52.4]} 63... Bd7 {[%clk
0:00:22.8]} 64. Be5 {[%clk 0:00:52.4]} 64... Bc8 {[%clk 0:00:22.9]} 65. Kh4
{[%clk 0:00:52.9]} 65... Bd7 {[%clk 0:00:19]} 66. Kg3 {[%clk 0:00:53.3]} 66...
Bc8 {[%clk 0:00:15.9]} 67. Kf3 {[%clk 0:00:53.9]} 67... g6 {[%clk 0:00:16.2]}
68. Kg3 {[%clk 0:00:54]} 68... Bd7 {[%clk 0:00:14.8]} 69. Kf3 {[%clk 0:00:48.9]}
69... Bc8 {[%clk 0:00:15.1]} 70. Ke4 {[%clk 0:00:49.6]} 70... Ke7 {[%clk
0:00:14.8]} 71. Bc3 {[%clk 0:00:48.8]} 71... Kd6 {[%clk 0:00:14.8]} 72. Ba5
{[%clk 0:00:48.9]} 72... Bb7+ {[%clk 0:00:14.6]} 73. Kd4 {[%clk 0:00:49]} 73...
Kd7 {[%clk 0:00:14.4]} 74. Ke5 {[%clk 0:00:49.2]} 74... Bf3 {[%clk 0:00:14.6]}
75. g5 {[%clk 0:00:45.9]} 75... Bd1 {[%clk 0:00:14.6]} 76. Kf6 {[%clk
0:00:37.4]} 76... Bc2 {[%clk 0:00:14.8]} 77. Kf7 {[%clk 0:00:38.1]} 77... Bf5
{[%clk 0:00:14.9]} 78. Kf6 {[%clk 0:00:38.8]} 78... Kc8 {[%clk 0:00:13.4]} 79.
Ke7 {[%clk 0:00:38.8]} 79... Bc2 {[%clk 0:00:13.2]} 80. Kd6 {[%clk 0:00:39.3]}
80... Bf5 {[%clk 0:00:13.4]} 81. Ke7 {[%clk 0:00:39.7]} 81... Bb1 {[%clk
0:00:14.1]} 82. Kxe6 {[%clk 0:00:40.4]} 82... Bf5+ {[%clk 0:00:14.9]} 83. Kd6
{[%clk 0:00:40.9]} 83... Bb1 {[%clk 0:00:15.1]} 84. Bc3 {[%clk 0:00:41.8]} 84...
Bf5 {[%clk 0:00:15.7]} 85. Be5 {[%clk 0:00:42.7]} 85... Bb1 {[%clk 0:00:16.3]}
86. Ke7 {[%clk 0:00:43.6]} 86... Bf5 {[%clk 0:00:16.9]} 87. Kf6 {[%clk
0:00:44.5]} 87... Be4 {[%clk 0:00:17.4]} 88. Kg7 {[%clk 0:00:45.4]} 88... Bf5
{[%clk 0:00:18.2]} 89. Kf8 {[%clk 0:00:46.3]} 89... Be4 {[%clk 0:00:18.9]} 90.
Ke7 {[%clk 0:00:47.2]} 90... Bf5 {[%clk 0:00:19.8]} 91. Kd6 {[%clk 0:00:48.1]}
91... Be4 {[%clk 0:00:20.6]} 92. Kc5 {[%clk 0:00:49]} 92... Bf5 {[%clk
0:00:21.5]} 93. Kd4 {[%clk 0:00:49.7]} 93... Be4 {[%clk 0:00:22.4]} 94. Kxe4
{[%clk 0:00:50.1]} 1-0